bitfinex/quotes_BTCUSD_20241009
["timestamp","ask_amount","ask_price","bid_price","bid_amount"]
[1728458113286,0.01487995,62283.0,62282.0,0.341081]
[1728458113503,0.001642,62293.0,62292.0,0.160534]
[1728458113724,0.001642,62293.0,62292.0,0.237634]
[1728458113959,0.04035567,62293.0,62292.0,0.237634]
[1728458115761,0.04235567,62293.0,62292.0,0.237634]
[1728458115975,0.04235567,62293.0,62292.0,0.239634]
[1728458116188,0.04235567,62293.0,62292.0,0.336334]
[1728458116860,0.04236432,62293.0,62292.0,0.336334]
[1728458117560,0.04236432,62293.0,62292.0,0.334334]
[1728458119310,0.04236432,62293.0,62292.0,0.336334]
[1728458119526,0.04236432,62293.0,62292.0,0.334334]
[1728458120395,0.04236432,62293.0,62292.0,0.335155]
[1728458122661,0.04236432,62293.0,62292.0,0.337155]
[1728458123115,0.04036432,62293.0,62292.0,0.337155]
[1728458123335,0.04036432,62293.0,62292.0,0.342155]
[1728458123336,0.003642,62293.0,62292.0,0.342155]
[1728458123557,0.001642,62293.0,62292.0,0.342155]
[1728458123775,0.01652066,62293.0,62292.0,0.342155]
[1728458124427,0.001642,62293.0,62292.0,0.52653873]
[1728458124869,0.001642,62293.0,62292.0,0.342155]
[1728458125337,0.001642,62293.0,62292.0,0.52653873]
[1728458125557,0.002642,62293.0,62292.0,0.52653873]
[1728458126017,0.003642,62293.0,62292.0,0.52653873]
[1728458126459,0.002642,62293.0,62292.0,0.52653873]
[1728458126680,0.003642,62293.0,62292.0,0.342155]
[1728458127109,0.002642,62293.0,62292.0,0.342155]
[1728458128481,0.001642,62293.0,62292.0,0.342155]
[1728458128672,0.002642,62293.0,62292.0,0.342155]
[1728458128915,0.003642,62293.0,62292.0,0.342155]
[1728458129146,0.001642,62293.0,62292.0,0.342155]
[1728458129373,0.002642,62293.0,62292.0,0.342155]
[1728458129567,0.003642,62293.0,62292.0,0.342155]
[1728458129794,0.002642,62293.0,62292.0,0.342155]
[1728458130249,0.003642,62293.0,62292.0,0.342155]
[1728458131898,0.002642,62293.0,62292.0,0.342155]
[1728458132148,0.001642,62293.0,62292.0,0.342155]
[1728458132654,0.003642,62293.0,62292.0,0.342155]
[1728458132923,0.002642,62293.0,62292.0,0.342155]
[1728458133438,0.001642,62293.0,62292.0,0.342155]
[1728458133695,0.002642,62293.0,62292.0,0.342155]
[1728458134138,0.001642,62293.0,62292.0,0.342155]
[1728458134367,0.002642,62293.0,62292.0,0.342155]
[1728458135535,0.003642,62293.0,62292.0,0.342155]
[1728458135775,0.01851923,62293.0,62292.0,0.342155]
[1728458136025,0.01751923,62293.0,62292.0,0.342155]
[1728458136533,0.01851923,62293.0,62292.0,0.342155]
[1728458138510,0.01851923,62293.0,62292.0,0.4630919]
[1728458139284,0.003642,62293.0,62292.0,0.4630919]
[1728458139517,0.01854221,62293.0,62292.0,0.4630919]
[1728458141198,0.01854221,62293.0,62292.0,0.342155]
[1728458141441,0.01854221,62293.0,62292.0,0.340155]
[1728458141915,0.04240288,62293.0,62292.0,0.340155]
[1728458142158,0.04240288,62293.0,62292.0,0.342155]
[1728458142394,0.04240978,62293.0,62292.0,0.342155]
[1728458142629,0.04040978,62293.0,62292.0,0.342155]
[1728458142862,0.04140978,62293.0,62292.0,0.342155]
[1728458143327,0.001642,62293.0,62292.0,0.342155]
[1728458143559,0.04043151,62293.0,62292.0,0.342155]
[1728458143820,0.04143151,62293.0,62292.0,0.4630919]
[1728458144739,0.01756104,62293.0,62292.0,0.4630919]
[1728458144980,0.04143391,62293.0,62292.0,0.4630919]
[1728458145246,0.04243391,62293.0,62292.0,0.4630919]
[1728458145472,0.01756104,62293.0,62292.0,0.4630919]
[1728458146170,0.01856104,62293.0,62292.0,0.4630919]
[1728458150195,0.003642,62293.0,62292.0,0.4630919]
[1728458150441,0.01856458,62293.0,62292.0,0.4630919]
[1728458152413,0.04245467,62293.0,62292.0,0.4630919]
[1728458152631,0.04246341,62293.0,62292.0,0.4630919]
[1728458152858,0.01857331,62293.0,62292.0,0.4630919]
[1728458153111,0.002,62296.0,62295.0,0.167526]
[1728458153332,0.02588909,62296.0,62295.0,0.3647629]
[1728458153564,0.002,62296.0,62295.0,0.3647629]
[1728458154869,0.003,62296.0,62295.0,0.3657629]
[1728458155083,0.003,62296.0,62295.0,0.3667629]
[1728458155978,0.003,62296.0,62295.0,0.245826]
[1728458156180,0.0268853,62296.0,62295.0,0.245826]
[1728458157077,0.02688559,62296.0,62295.0,0.3667629]
[1728458160491,0.003,62296.0,62295.0,0.3667629]
[1728458160741,0.02688581,62296.0,62295.0,0.3667629]
[1728458161439,0.02688581,62296.0,62295.0,0.245826]
[1728458163565,0.02688581,62296.0,62295.0,0.243826]
[1728458164629,0.02688581,62296.0,62295.0,0.169526]
[1728458165048,0.04181349,62296.0,62295.0,0.169526]
[1728458165253,0.04081349,62296.0,62295.0,0.166526]
[1728458165667,0.04081349,62296.0,62295.0,0.169526]
[1728458165882,0.02010562,62296.0,62295.0,0.169526]
[1728458166105,0.04081022,62296.0,62295.0,0.169526]
[1728458166355,0.0557377,62296.0,62295.0,0.169526]
[1728458166568,0.03185449,62296.0,62295.0,0.166526]
[1728458167048,0.04081146,62296.0,62295.0,0.167526]
[1728458167309,0.04081146,62296.0,62295.0,0.166526]
[1728458167497,0.04081146,62296.0,62295.0,0.167526]
[1728458167750,0.04081146,62296.0,62295.0,0.169526]
[1728458167938,0.04081146,62296.0,62295.0,0.167526]
[1728458168261,0.04245346,62296.0,62295.0,0.167526]
[1728458168469,0.04245346,62296.0,62295.0,0.169526]
[1728458168705,0.06055908,62296.0,62295.0,0.169526]
[1728458168836,0.04245346,62296.0,62295.0,0.169526]
[1728458169267,0.003642,62296.0,62295.0,0.169526]
[1728458169447,0.01856684,62296.0,62295.0,0.169526]
[1728458169662,0.04244658,62296.0,62295.0,0.168526]
[1728458170335,0.04344658,62296.0,62295.0,0.2904629]
[1728458170558,0.04344658,62296.0,62295.0,0.4688629]
[1728458172569,0.01956684,62296.0,62295.0,0.4688629]
[1728458173581,0.002,62299.0,62298.0,0.167518]
[1728458173848,0.002,62299.0,62298.0,0.3705549]
[1728458174082,0.002,62299.0,62298.0,0.41872194]
[1728458174305,0.002,62299.0,62298.0,0.3705549]
[1728458174537,0.002,62299.0,62298.0,0.6103343]
[1728458174793,0.002,62299.0,62298.0,0.50972194]
[1728458175237,0.002,62299.0,62298.0,0.4615549]
[1728458175504,0.002,62299.0,62298.0,0.53375863]
[1728458176010,0.003,62299.0,62298.0,0.53475863]
[1728458176246,0.002,62299.0,62298.0,0.53273912]
[1728458176738,0.004,62299.0,62298.0,0.70399721]
[1728458177020,0.002,62299.0,62298.0,0.63181299]
[1728458177286,0.001,62299.0,62298.0,0.69699571]
[1728458177555,0.002,62299.0,62298.0,0.68092524]
[1728458178310,0.002,62299.0,62298.0,0.63281299]
[1728458181475,0.003642,62299.0,62298.0,0.63281299]
[1728458183254,0.04777473,62328.0,62321.0,0.160459]
[1728458183500,0.0958,62328.0,62321.0,0.160459]
[1728458183756,0.160447,62326.0,62319.0,0.002]
[1728458184006,0.01700184,62322.0,62321.0,0.160459]
[1728458184510,0.01700184,62322.0,62321.0,0.162459]
[1728458184738,0.01800184,62322.0,62321.0,0.160459]
[1728458184957,0.01700184,62322.0,62318.0,0.320931]
[1728458185200,0.01700184,62322.0,62314.0,0.325954]
[1728458185425,0.01700184,62322.0,62314.0,0.005]
[1728458185426,0.160463,62320.0,62314.0,0.005]
[1728458185643,0.1732,62321.0,62314.0,0.005]
[1728458185644,0.01489724,62319.0,62314.0,0.005]
[1728458185878,0.01489724,62318.0,62314.0,0.005]
[1728458186109,0.01489724,62317.0,62314.0,0.005]
[1728458186336,0.01489724,62316.0,62314.0,0.165476]
[1728458186595,0.01533168,62316.0,62314.0,0.005]
[1728458186810,0.333661,62321.0,62316.0,0.160471]
[1728458187029,0.25467477,62320.0,62316.0,0.160471]
[1728458187201,0.002,62318.0,62316.0,0.160471]
[1728458187420,0.01489537,62317.0,62316.0,0.160471]
[1728458188382,0.03023685,62317.0,62316.0,0.160471]
[1728458190749,0.01489537,62317.0,62316.0,0.160471]
[1728458191779,0.01489537,62317.0,62316.0,0.162471]
[1728458191979,0.01489537,62317.0,62316.0,0.165471]
[1728458192492,0.01489537,62317.0,62316.0,0.163471]
[1728458192695,0.01489537,62317.0,62316.0,0.168471]
[1728458192901,0.002,62318.0,62317.0,0.160469]
[1728458193319,0.01689066,62318.0,62317.0,0.160469]
[1728458193731,0.01689079,62318.0,62317.0,0.160469]
[1728458194688,0.01689079,62318.0,62317.0,0.162469]
[1728458194876,0.01689079,62318.0,62317.0,0.166469]
[1728458195634,0.01689079,62318.0,62317.0,0.168469]
[1728458195849,0.01689079,62318.0,62317.0,0.166469]
[1728458197028,0.01689716,62318.0,62317.0,0.166469]
[1728458197208,0.01689644,62318.0,62317.0,0.166469]
[1728458198561,0.01689644,62318.0,62317.0,0.168469]
[1728458199386,0.01689644,62318.0,62317.0,0.166469]
[1728458200455,0.01689644,62318.0,62317.0,0.168469]
[1728458201910,0.50567688,62318.0,62317.0,0.006]
[1728458204516,0.17030988,62315.0,62310.0,0.005]
[1728458204738,0.0300938,62314.0,62310.0,0.005]
[1728458204961,0.01489644,62313.0,62310.0,0.005]
[1728458205181,0.01489644,62312.0,62310.0,0.005]
[1728458205434,0.01489644,62311.0,62310.0,0.165487]
[1728458205907,0.01489644,62311.0,62310.0,0.243687]
[1728458206132,0.01489644,62311.0,62310.0,0.244687]
[1728458206362,0.01489644,62311.0,62310.0,0.246687]
[1728458207314,0.01489644,62311.0,62310.0,0.245687]
[1728458207563,0.01489644,62311.0,62310.0,0.246687]
[1728458207807,0.01489644,62311.0,62310.0,0.248687]
[1728458208065,0.01493617,62311.0,62310.0,0.243687]
[1728458208297,0.01493617,62311.0,62310.0,0.248687]
[1728458208520,0.01593617,62311.0,62310.0,0.250687]
[1728458208983,0.01693617,62311.0,62310.0,0.256687]
[1728458209234,0.01693617,62311.0,62310.0,0.243687]
[1728458210587,0.01793617,62311.0,62310.0,0.250687]
[1728458211622,0.01893617,62311.0,62310.0,0.258687]
[1728458213310,0.01893617,62311.0,62310.0,0.260687]
[1728458213583,0.01893617,62311.0,62310.0,0.356087]
[1728458213811,0.004,62311.0,62310.0,0.356087]
[1728458214498,0.002,62311.0,62310.0,0.46194745]
[1728458214709,0.01794135,62311.0,62310.0,0.46994745]
[1728458214920,0.01794135,62311.0,62310.0,0.47894745]
[1728458214921,0.01894135,62311.0,62310.0,0.47894745]
[1728458215356,0.01894148,62311.0,62310.0,0.47894745]
[1728458216607,0.01894148,62311.0,62310.0,0.358087]
[1728458218116,0.004,62311.0,62310.0,0.358087]
[1728458219849,0.005642,62311.0,62310.0,0.358087]
[1728458221449,0.005642,62311.0,62310.0,0.356087]
[1728458222761,0.02058061,62311.0,62310.0,0.356087]
[1728458224079,0.02058061,62311.0,62310.0,0.358087]
[1728458224568,0.02058061,62311.0,62310.0,0.356087]
[1728458224795,0.02058061,62311.0,62310.0,0.260687]
[1728458225244,0.02058061,62311.0,62310.0,0.182487]
[1728458226158,0.02058061,62311.0,62310.0,0.177487]
[1728458226402,0.02058061,62311.0,62310.0,0.182487]
[1728458229907,0.02058061,62311.0,62310.0,0.177487]
[1728458230122,0.02058061,62311.0,62310.0,0.182487]
[1728458230334,0.02058061,62311.0,62310.0,0.177487]
[1728458230532,0.02058061,62311.0,62310.0,0.182487]
[1728458232771,0.02058061,62311.0,62310.0,0.177487]
[1728458232999,0.02058061,62311.0,62310.0,0.182487]
[1728458234818,0.02057927,62311.0,62310.0,0.182487]
[1728458237215,0.02057927,62311.0,62310.0,0.260687]
[1728458238105,0.001642,62318.0,62312.0,0.007]
[1728458238330,0.001642,62318.0,62317.0,0.328669]
[1728458239753,0.001642,62318.0,62317.0,0.329669]
[1728458241627,0.001642,62318.0,62317.0,0.332669]
[1728458249577,0.001642,62318.0,62317.0,0.45350679]
[1728458250812,0.001642,62318.0,62317.0,0.45850679]
[1728458251750,0.001642,62318.0,62317.0,0.45750679]
[1728458251969,0.001642,62318.0,62317.0,0.46350679]
[1728458251970,0.002642,62318.0,62317.0,0.46350679]
[1728458252409,0.001642,62318.0,62317.0,0.45450679]
[1728458252637,0.002642,62318.0,62317.0,0.47550679]
[1728458253305,0.002642,62318.0,62317.0,0.46850679]
[1728458253523,0.002642,62318.0,62317.0,0.48250679]
[1728458255849,0.002642,62318.0,62317.0,0.361669]
[1728458256237,0.002642,62318.0,62317.0,0.271669]
[1728458268909,0.01758608,62318.0,62317.0,0.271669]
[1728458269986,0.002642,62318.0,62317.0,0.271669]
[1728458270230,0.01758668,62318.0,62317.0,0.271669]
[1728458273705,0.01759018,62318.0,62317.0,0.271669]
[1728458273927,0.002642,62318.0,62317.0,0.271669]
[1728458274148,0.01758969,62318.0,62317.0,0.271669]
[1728458277000,0.01759107,62318.0,62317.0,0.271669]
[1728458280352,0.002642,62318.0,62317.0,0.271669]
[1728458281895,0.002642,62318.0,62317.0,0.48980679]
[1728458283075,0.002642,62318.0,62317.0,0.368969]
[1728458284229,0.002642,62318.0,62317.0,0.271669]
[1728458284470,0.01759539,62318.0,62317.0,0.188469]
[1728458284707,0.27596239,62318.0,62317.0,0.028]
[1728458284916,0.12578873,62318.0,62317.0,0.028]
[1728458285352,0.12578873,62318.0,62317.0,0.188469]
[1728458285571,0.12578873,62318.0,62317.0,0.174469]
[1728458286010,0.12478873,62318.0,62317.0,0.165469]
[1728458286237,0.11083534,62318.0,62317.0,0.165469]
[1728458286509,0.1257857,62318.0,62317.0,0.005]
[1728458286748,0.0278857,62318.0,62317.0,0.165469]
[1728458287178,0.01759236,62318.0,62317.0,0.165469]
[1728458287388,0.01759236,62318.0,62317.0,0.160469]
[1728458287603,0.01659236,62318.0,62317.0,0.161469]
[1728458288037,0.11339236,62318.0,62317.0,0.001]
[1728458288249,0.11339236,62318.0,62316.0,0.160472]
[1728458288470,0.01495036,62317.0,62316.0,0.160472]
[1728458288878,0.02507543,62317.0,62316.0,0.160472]
[1728458289645,0.02507543,62317.0,62316.0,0.161472]
[1728458290762,0.02507543,62317.0,62316.0,0.163472]
[1728458290980,0.02507543,62317.0,62316.0,0.162472]
[1728458291523,0.02507543,62317.0,62316.0,0.165472]
[1728458293795,0.25259407,62317.0,62316.0,0.005]
[1728458294018,0.09212507,62317.0,62316.0,0.005]
[1728458294286,0.01012507,62317.0,62316.0,0.005]
[1728458294498,0.01012507,62317.0,62316.0,0.160472]
[1728458294930,0.01112507,62317.0,62316.0,0.160472]
[1728458295138,0.01012507,62317.0,62316.0,0.160472]
[1728458295565,0.01312507,62317.0,62316.0,0.160472]
[1728458295778,0.01312507,62317.0,62315.0,0.160473]
[1728458296029,0.01312507,62317.0,62316.0,0.160472]
[1728458297377,0.01112507,62317.0,62316.0,0.160472]
[1728458297757,0.01112507,62317.0,62314.0,0.320955]
[1728458297987,0.01412507,62317.0,62315.0,0.160473]
[1728458298624,0.01612507,62317.0,62315.0,0.160473]
[1728458298905,0.01112507,62317.0,62315.0,0.160473]
[1728458299110,0.01412507,62317.0,62315.0,0.160473]
[1728458299553,0.01412507,62317.0,62311.0,0.000821]
[1728458299768,0.160473,62316.0,62311.0,0.161304]
[1728458300196,0.00835257,62315.0,62311.0,0.161304]
[1728458300603,0.00835257,62315.0,62312.0,0.160482]
[1728458302227,0.00935257,62315.0,62312.0,0.160482]
[1728458302400,0.00935257,62315.0,62311.0,0.161305]
[1728458302874,0.00935257,62315.0,62312.0,0.160482]
[1728458303556,0.00835257,62315.0,62312.0,0.160482]
[1728458303744,0.00935257,62315.0,62312.0,0.160482]
[1728458303955,0.00935257,62315.0,62311.0,0.000821]
[1728458304170,0.00935257,62315.0,62311.0,0.161305]
[1728458304389,0.01035257,62315.0,62312.0,0.160482]
[1728458305263,0.00835257,62315.0,62312.0,0.160482]
[1728458305512,0.00935257,62315.0,62312.0,0.160482]
[1728458305710,0.01492151,62314.0,62312.0,0.160482]
[1728458305922,0.02339767,62313.0,62312.0,0.160482]
[1728458306564,0.02339777,62313.0,62312.0,0.160482]
[1728458306813,0.02339777,62313.0,62311.0,0.000821]
[1728458307046,0.02339777,62313.0,62311.0,0.161305]
[1728458307267,0.01492161,62312.0,62311.0,0.161305]
[1728458307481,0.01492161,62312.0,62311.0,0.000821]
[1728458307705,0.02323729,62312.0,62311.0,0.161306]
[1728458308742,0.02323729,62312.0,62311.0,0.162306]
[1728458309509,0.01492161,62312.0,62311.0,0.162306]
[1728458309687,0.00847038,62312.0,62311.0,0.001821]
[1728458309887,0.160471,62317.0,62311.0,0.001821]
[1728458310088,0.00846629,62316.0,62312.0,0.160482]
[1728458310659,0.01492425,62315.0,62312.0,0.160482]
[1728458310865,0.02338496,62314.0,62312.0,0.160482]
[1728458311067,0.01492425,62313.0,62312.0,0.160482]
[1728458311268,0.02341645,62313.0,62312.0,0.160482]
[1728458312517,0.02441645,62313.0,62312.0,0.160482]
[1728458313649,0.01592425,62313.0,62312.0,0.160482]
[1728458314483,0.02441645,62313.0,62312.0,0.160482]
[1728458316921,0.02441645,62313.0,62311.0,0.000821]
[1728458317195,0.17540625,62312.0,62311.0,0.000821]
[1728458317638,0.52451809,62312.0,62311.0,0.000821]
[1728458317859,0.59524525,62312.0,62311.0,0.000821]
[1728458318082,0.66683599,62312.0,62311.0,0.000821]
[1728458318305,0.72531809,62312.0,62311.0,0.000821]
[1728458318752,0.72631809,62312.0,62311.0,0.000821]
[1728458318970,0.84715588,62312.0,62311.0,0.000821]
[1728458319815,0.84815588,62312.0,62311.0,0.000821]
[1728458320523,0.84715588,62312.0,62311.0,0.000821]
[1728458320745,0.85314268,62312.0,62311.0,0.001821]
[1728458320987,0.85614268,62312.0,62311.0,0.001821]
[1728458321221,0.85014268,62312.0,62311.0,0.001821]
[1728458321444,0.86114268,62312.0,62311.0,0.002821]
[1728458321908,0.85914268,62312.0,62311.0,0.002821]
[1728458322367,0.97830311,62312.0,62311.0,0.002821]
[1728458323287,0.97030311,62312.0,62311.0,0.002821]
[1728458323518,0.97230311,62312.0,62311.0,0.002821]
[1728458324183,0.85114268,62312.0,62311.0,0.002821]
[1728458324414,0.85814268,62312.0,62311.0,0.002821]
[1728458325079,1.00116838,62312.0,62311.0,0.002821]
[1728458325314,1.00116838,62312.0,62311.0,0.001]
[1728458325578,0.457695,62307.0,62306.0,0.000821]
[1728458325823,0.86792158,62307.0,62306.0,0.000821]
[1728458326064,0.87620772,62307.0,62306.0,0.000821]
[1728458326565,0.75714342,62307.0,62306.0,0.000821]
[1728458327054,0.76114342,62307.0,62306.0,0.001821]
[1728458327299,0.77114342,62307.0,62306.0,0.002821]
[1728458327549,0.89913306,62307.0,62306.0,0.002821]
[1728458328039,0.88922201,62307.0,62306.0,0.002821]
[1728458328253,0.90410219,62307.0,62306.0,0.002821]
[1728458328495,0.99928892,62307.0,62306.0,0.002821]
[1728458328698,0.90407984,62307.0,62306.0,0.002821]
[1728458329163,0.80889311,62307.0,62306.0,0.002821]
[1728458329582,0.90408906,62307.0,62306.0,0.002821]
[1728458329908,0.88920802,62307.0,62306.0,0.002821]
[1728458330344,0.88919838,62307.0,62306.0,0.002821]
[1728458331776,0.88918605,62307.0,62306.0,0.002821]
[1728458331990,0.79401207,62307.0,62306.0,0.002821]
[1728458332203,0.86957798,62307.0,62306.0,0.002821]
[1728458332699,0.78991359,62307.0,62306.0,0.002821]
[1728458332909,0.83749308,62307.0,62306.0,0.002821]
[1728458333118,0.85236462,62307.0,62306.0,0.002821]
[1728458333335,0.87615375,62307.0,62306.0,0.002821]
[1728458333540,0.80478513,62307.0,62306.0,0.002821]
[1728458333989,0.78991359,62307.0,62306.0,0.002821]
[1728458334201,0.86127657,62307.0,62306.0,0.002821]
[1728458334409,0.78991359,62307.0,62306.0,0.002821]
[1728458336440,0.83748173,62307.0,62306.0,0.002821]
[1728458336666,0.83748025,62307.0,62306.0,0.002821]
[1728458336883,0.78991359,62307.0,62306.0,0.002821]
[1728458337524,0.83747842,62307.0,62306.0,0.002821]
[1728458338162,0.78991359,62307.0,62306.0,0.002821]
[1728458338799,0.83747787,62307.0,62306.0,0.002821]
[1728458339155,0.80469817,62307.0,62306.0,0.002821]
[1728458339973,0.60316038,62307.0,62306.0,0.002821]
[1728458340179,0.47747272,62307.0,62306.0,0.002821]
[1728458340466,0.55074623,62307.0,62306.0,0.002821]
[1728458340690,0.16941344,62307.0,62306.0,0.002821]
[1728458340915,0.16941344,62307.0,62306.0,0.093221]
[1728458341362,0.01,62307.0,62306.0,0.334219]
[1728458341607,0.160487,62311.0,62306.0,0.333219]
[1728458341827,0.15541344,62310.0,62306.0,0.173721]
[1728458342071,0.007,62307.0,62306.0,0.173721]
[1728458342515,0.002,62307.0,62306.0,0.172721]
[1728458343375,0.260491,62309.0,62306.0,0.172721]
[1728458343587,0.002,62307.0,62306.0,0.172721]
[1728458344255,0.003,62307.0,62306.0,0.172721]
[1728458345189,0.15541344,62308.0,62306.0,0.172721]
[1728458345858,0.15541344,62308.0,62306.0,0.333217]
[1728458346079,0.001,62309.0,62306.0,0.172721]
[1728458346307,0.15641344,62309.0,62307.0,0.241795]
[1728458346532,0.101642,62312.0,62308.0,0.160492]
[1728458346745,0.15541344,62311.0,62307.0,0.0813]
[1728458346965,0.001,62308.0,62307.0,0.241793]
[1728458347180,0.15541344,62311.0,62307.0,0.241793]
[1728458347400,0.31589844,62311.0,62307.0,0.0813]
[1728458347619,0.002,62309.0,62307.0,0.0813]
[1728458347839,0.31589844,62311.0,62307.0,0.0813]
[1728458348279,0.001,62308.0,62307.0,0.0813]
[1728458348490,0.31589844,62311.0,62307.0,0.0813]
[1728458349330,0.31789844,62311.0,62307.0,0.0813]
[1728458349769,0.31789844,62311.0,62307.0,0.0791]
[1728458349770,0.15741344,62311.0,62307.0,0.0791]
[1728458349976,0.002,62309.0,62307.0,0.0791]
[1728458350207,0.31789844,62311.0,62307.0,0.0791]
[1728458350431,0.160492,62309.0,62307.0,0.0791]
[1728458350651,0.15741344,62311.0,62307.0,0.0791]
[1728458350652,0.31590644,62308.0,62307.0,0.0791]
[1728458352930,0.160495,62307.0,62306.0,0.000821]
[1728458353144,0.43674623,62307.0,62306.0,0.000821]
[1728458353357,0.5207821,62307.0,62306.0,0.000821]
[1728458353783,0.43674623,62307.0,62306.0,0.000821]
[1728458354217,0.43974623,62307.0,62306.0,0.000821]
[1728458354662,0.43674623,62307.0,62306.0,0.000821]
[1728458354878,0.44674623,62307.0,62306.0,0.001821]
[1728458355398,0.44774623,62307.0,62306.0,0.001821]
[1728458355731,0.44674623,62307.0,62306.0,0.001821]
[1728458355963,0.44674623,62307.0,62306.0,0.002821]
[1728458356210,0.45174623,62307.0,62306.0,0.002821]
[1728458356669,0.44174623,62307.0,62306.0,0.001821]
[1728458356912,0.32990844,62307.0,62306.0,0.002821]
[1728458357150,0.45074623,62307.0,62306.0,0.002821]
[1728458360523,0.32990844,62307.0,62306.0,0.002821]
[1728458365922,0.47374623,62307.0,62306.0,0.002821]
[1728458367885,0.60756971,62307.0,62306.0,0.002821]
[1728458368333,0.65527034,62307.0,62306.0,0.002821]
[1728458368571,0.75527034,62307.0,62306.0,0.002821]
[1728458368792,0.70956971,62307.0,62306.0,0.002821]
[1728458372590,0.73473324,62307.0,62306.0,0.002821]
[1728458373060,0.47807197,62307.0,62306.0,0.002821]
[1728458373303,0.59890976,62307.0,62306.0,0.002821]
[1728458376039,0.47807197,62307.0,62306.0,0.002821]
[1728458376293,0.59890976,62307.0,62306.0,0.002821]
[1728458387168,0.75185448,62307.0,62306.0,0.002821]
[1728458387615,0.75185448,62307.0,62306.0,0.177521]
[1728458387616,0.45507197,62307.0,62306.0,0.177521]
[1728458387849,0.32990844,62307.0,62306.0,0.177521]
[1728458394123,0.014,62307.0,62306.0,0.211324]
[1728458394340,0.014,62307.0,62306.0,0.338019]
[1728458395213,0.009,62307.0,62306.0,0.337019]
[1728458395665,0.001642,62311.0,62310.0,0.160487]
[1728458395883,0.001642,62311.0,62310.0,0.45522479]
[1728458396106,0.001642,62311.0,62310.0,0.334387]
[1728458397281,0.001642,62311.0,62310.0,0.340387]
[1728458397542,0.001642,62311.0,62310.0,0.334387]
[1728458398882,0.001642,62311.0,62310.0,0.341387]
[1728458399130,0.001642,62311.0,62310.0,0.338387]
[1728458399340,0.001642,62311.0,62310.0,0.341387]
[1728458401655,0.001642,62311.0,62310.0,0.1809]
[1728458401657,0.28296479,62311.0,62310.0,0.1809]
[1728458402627,0.28296479,62311.0,62310.0,0.1779]
[1728458402863,0.28296479,62311.0,62310.0,0.0812]
[1728458402864,0.43837823,62311.0,62310.0,0.0812]
[1728458403366,0.43837823,62311.0,62310.0,0.0772]
[1728458403610,0.43837823,62311.0,62310.0,0.0782]
[1728458404087,0.43837823,62311.0,62310.0,0.0772]
[1728458404353,0.160495,62307.0,62306.0,0.000821]
[1728458404609,0.43674623,62307.0,62306.0,0.000821]
[1728458406611,0.31590844,62307.0,62306.0,0.000821]
[1728458406857,0.42345755,62307.0,62306.0,0.001821]
[1728458407098,0.42745755,62307.0,62306.0,0.001821]
[1728458409282,0.52745755,62307.0,62306.0,0.001821]
[1728458409509,0.64685944,62307.0,62306.0,0.001821]
[1728458409735,0.54237306,62307.0,62306.0,0.001821]
[1728458410190,0.53245755,62307.0,62306.0,0.001821]
[1728458410404,0.54737274,62307.0,62306.0,0.001821]
[1728458411077,0.54337274,62307.0,62306.0,0.001821]
[1728458411297,0.84528574,62307.0,62306.0,0.000821]
[1728458411522,1.19882335,62307.0,62306.0,0.002821]
[1728458412853,1.19882335,62307.0,62306.0,0.001821]
[1728458412854,1.19382335,62307.0,62306.0,0.001821]
[1728458413091,1.06921819,62307.0,62306.0,0.001821]
[1728458413314,1.22135247,62307.0,62306.0,0.002821]
[1728458413527,1.19455627,62307.0,62306.0,0.001821]
[1728458413750,1.17064108,62307.0,62306.0,0.000821]
[1728458413969,1.19664108,62307.0,62306.0,0.002821]
[1728458414197,1.16664597,62307.0,62306.0,0.001821]
[1728458414668,1.16864597,62307.0,62306.0,0.001821]
[1728458414927,1.25804425,62307.0,62306.0,0.000821]
[1728458415166,1.27204425,62307.0,62306.0,0.001821]
[1728458415423,1.25804425,62307.0,62306.0,0.000821]
[1728458415910,1.25801557,62307.0,62306.0,0.000821]
[1728458416156,1.26701557,62307.0,62306.0,0.001821]
[1728458416389,1.26701557,62307.0,62306.0,0.001]
[1728458416619,1.26701557,62307.0,62296.0,0.000821]
[1728458416620,0.002,62301.0,62296.0,0.000821]
[1728458416854,0.53937257,62297.0,62296.0,0.000821]
[1728458417041,0.55427746,62297.0,62296.0,0.000821]
[1728458417506,0.55426664,62297.0,62296.0,0.000821]
[1728458417937,0.55426664,62297.0,62296.0,0.001821]
[1728458418157,0.56626664,62297.0,62296.0,0.002821]
[1728458418576,0.55426664,62297.0,62296.0,0.001821]
[1728458419017,0.49672291,62297.0,62296.0,0.002821]
[1728458419202,0.54440789,62297.0,62296.0,0.001821]
[1728458419458,0.55340789,62297.0,62296.0,0.002821]
[1728458420340,0.36910005,62297.0,62296.0,0.002821]
[1728458420565,0.32141507,62297.0,62296.0,0.002821]
[1728458420793,0.55340301,62297.0,62296.0,0.002821]
[1728458421218,0.53850894,62297.0,62296.0,0.002821]
[1728458421434,0.55339479,62297.0,62296.0,0.002821]
[1728458422301,0.50571469,62297.0,62296.0,0.002821]
[1728458422558,0.81654157,62297.0,62296.0,0.002821]
[1728458422839,0.86421536,62297.0,62296.0,0.002821]
[1728458423102,0.81654157,62297.0,62296.0,0.002821]
[1728458425199,0.66112813,62297.0,62296.0,0.002821]
[1728458425971,0.81914195,62297.0,62296.0,0.002821]
[1728458426383,0.75586294,62297.0,62296.0,0.002821]
[1728458426617,0.59784912,62297.0,62296.0,0.002821]
[1728458427260,0.67134343,62297.0,62296.0,0.002821]
[1728458427490,0.981068,62297.0,62296.0,0.002821]
[1728458428447,0.97301657,62297.0,62296.0,0.002821]
[1728458428660,1.04449041,62297.0,62296.0,0.002821]
[1728458429745,0.97301657,62297.0,62296.0,0.002821]
[1728458430193,0.78654486,62297.0,62296.0,0.002821]
[1728458430470,1.0206567,62297.0,62296.0,0.002821]
[1728458430709,1.0186567,62297.0,62296.0,0.002821]
[1728458431440,1.00577085,62297.0,62296.0,0.002821]
[1728458431704,0.95813072,62297.0,62296.0,0.002821]
[1728458431925,0.9883466,62297.0,62296.0,0.002821]
[1728458433152,0.9863466,62297.0,62296.0,0.002821]